[Event "SVK Extraliga 2017-18"]
[Site "Slovakia"]
[Date "2017.12.09"]
[Round "5"]
[White "Schwarz, Dusan"]
[Black "Kantorik, Marian"]
[Result "0-1"]
[ECO "A65"]
[WhiteElo "2284"]
[BlackElo "2298"]
[Annotator "NA"]
[PlyCount "68"]
[EventDate "2017.??.??"]
[EventType "team-tourn"]
[EventCountry "SVK"]
[SourceTitle "playchess.com"]
[Source "ChessBase"]
[SourceQuality "1"]
[TimeControl "40/5400+30:1800+30"]

1. d4 {[%emt 0:00:00]} Nf6 {[%emt 0:01:01]} 2. c4 {[%emt 0:00:00]} e6 {[%emt 0:00:13]} 3. Nc3 {[%emt 0:00:00]} c5 {[%emt 0:00:31]} 4. d5 {[%emt 0:00:16]} exd5 {[%emt 0:00:07]} 5. cxd5 {[%emt 0:00:05]} d6 {[%emt 0:00:09]} 6. e4 {[%emt 0:01:11]} g6 {[%emt 0:00:14]} 7. Nge2 {[%emt 0:01:04]} Bg7 {[%emt 0:00:23]} 8. Ng3 {[%emt 0:00:13]} O-O {[%emt 0:00:37]} 9. Be2 {[%emt 0:00:15]} b6 {[%emt 0:01:47]} 10. O-O {[%emt 0:02:03]} Ba6 {[%emt 0:00:56]} 11. Bg5 {[%emt 0:08:19]} Bxe2 {[%emt 0:01:30]} 12. Qxe2 {[%emt 0:00:16]} Nbd7 {[%emt 0:00:46]} 13. Rae1 {[%emt 0:04:26]} a6 {[%emt 0:01:04]} 14. a4 {[%emt 0:06:49]} (14. f4 $5 {[%cal Re4e5]}) 14... Re8 {[%emt 0:01:06]} 15. Qd2 {[%emt 0:04:24]} Qc7 {[%emt 0:06:10]} 16. Bh6 {[%emt 0:03:00]} Bh8 {[%emt 0:02:16]} 17. h3 {[%emt 0:11:54]} c4 {[%emt 0:10:29]} 18. f4 {[%emt 0:11:37]} b5 {[%emt 0:00:48]} 19. axb5 {[%emt 0:04:53]} axb5 {[%emt 0:00:08]} 20. Kh1 {[%emt 0:00:10]} b4 {[%emt 0:03:31]} 21. Nd1 {[%emt 0:00:21]} Qc5 {[%emt 0:04:37]} 22. f5 {[%emt 0:08:54]} Ra2 {[%emt 0:14:33]} 23. fxg6 {[%emt 0:00:40]} hxg6 {[%emt 0:00:40]} 24. Qc1 {[%emt 0:11:44]} Ne5 {[%emt 0:03:54]} 25. Be3 {[%emt 0:01:55]} Qa5 $17 {[%emt 0:06:45]} (25... Nd3 $19 {is more deadly.} 26. Bxc5 Nxc1 27. Bxd6 Nd3) 26. Nf2 {[%emt 0:00:26]} Nfd7 {[%emt 0:02:50]} 27. Ne2 {[%emt 0:03:48]} Nc5 {[%emt 0:05:49]} 28. Bxc5 {[%emt 0:02:42]} Qxc5 {[%emt 0:00:26]} 29. Rd1 {[%emt 0:02:45]} c3 {[%emt 0:02:02]} 30. Nf4 {[%emt 0:04:51]} cxb2 {[%emt 0:03:09]} 31. Qb1 {[%emt 0:01:15]} b3 {[%emt 0:01:26]} 32. N2d3 {[%emt 0:01:00]} Qc2 {[%emt 0:04:08]} 33. Nb4 {[%emt 0:00:33]} Qxb1 {[%emt 0:01:04]} 34. Rxb1 {[%emt 0:00:05]} Nc4 {[%emt 0:00:46]} 0-1

[Event "SVK Extraliga 2017-18"]
[Site "Slovakia"]
[Date "2017.12.09"]
[Round "5"]
[White "Zambor, Norbert"]
[Black "Fiacan, Robert"]
[Result "1-0"]
[ECO "C50"]
[WhiteElo "2284"]
[BlackElo "2229"]
[Annotator "NA"]
[PlyCount "148"]
[EventDate "2017.??.??"]
[EventType "team-tourn"]
[EventCountry "SVK"]
[SourceTitle "playchess.com"]
[Source "ChessBase"]
[SourceQuality "1"]
[TimeControl "40/5400+30:1800+30"]

1. e4 {[%emt 0:00:00]} e5 {[%emt 0:00:33]} 2. Nf3 {[%emt 0:00:04]} Nc6 {[%emt 0:00:06]} 3. Bc4 {[%emt 0:01:18]} Bc5 {[%emt 0:01:05]} 4. O-O {[%emt 0:01:06]} Nf6 {[%emt 0:02:44]} 5. d3 {[%emt 0:00:11]} d6 {[%emt 0:01:59]} 6. c3 {[%emt 0:00:25]} O-O {[%emt 0:07:21]} 7. b4 {[%emt 0:03:25]} Bb6 {[%emt 0:00:20]} 8. Bg5 {[%emt 0:03:36]} Be6 {[%emt 0:06:46]} 9. a4 {[%emt 0:15:37]} a5 {[%emt 0:13:59]} 10. b5 {[%emt 0:03:11]} Bxc4 {[%emt 0:05:03]} 11. bxc6 {[%emt 0:16:21]} Ba6 {[%emt 0:02:13]} 12. cxb7 {[%emt 0:03:13]} Bxb7 {[%emt 0:06:28]} 13. c4 {[%emt 0:04:37]} h6 {[%emt 0:03:29]} 14. Be3 {[%emt 0:17:59]} c6 {[%emt 0:12:53]} 15. Bxb6 {[%emt 0:07:17]} Qxb6 {[%emt 0:00:10]} 16. Nbd2 {[%emt 0:00:37]} Rfe8 {[%emt 0:08:39]} 17. Rb1 {[%emt 0:01:12]} Qa7 {[%emt 0:01:10]} 18. Qb3 {[%emt 0:00:46]} Rab8 {[%emt 0:01:45]} 19. Qc3 {[%emt 0:05:09]} Ba8 {[%emt 0:07:57]} 20. c5 {[%emt 0:09:50]} dxc5 {[%emt 0:11:26]} 21. Nxe5 {[%emt 0:01:41]} Rb4 {[%emt 0:00:22]} 22. Ndc4 {[%emt 0:01:06]} Qc7 {[%emt 0:00:33]} 23. f4 {[%emt 0:00:57]} Bb7 {[%emt 0:00:47]} 24. Ne3 {[%emt 0:01:08]} Nd7 {[%emt 0:01:47]} 25. Nxd7 {[%emt 0:01:08]} Qxd7 {[%emt 0:00:08]} 26. Nf5 {[%emt 0:00:20]} f6 {[%emt 0:00:32]} 27. Rbd1 {[%emt 0:00:44]} g6 {[%emt 0:01:13]} 28. Ne3 {[%emt 0:00:29]} Qd4 {[%emt 0:00:20]} 29. Qxd4 {[%emt 0:00:12]} cxd4 {[%emt 0:00:10]} 30. Nc4 {[%emt 0:00:44]} Rxa4 {[%emt 0:00:54]} 31. Nb6 {[%emt 0:00:25]} Rb4 {[%emt 0:00:56]} 32. Nd7 {[%emt 0:00:11]} Kf7 {[%emt 0:00:24]} 33. Rb1 {[%emt 0:00:58]} Rb5 {[%emt 0:01:49]} 34. Rfc1 {[%emt 0:00:26]} Ke7 {[%emt 0:00:40]} 35. Nc5 {[%emt 0:00:31]} Rb8 {[%emt 0:00:19]} 36. Ra1 {[%emt 0:00:33]} Kd6 {[%emt 0:00:30]} 37. e5+ {[%emt 0:00:29]} fxe5 {[%emt 0:00:32]} 38. fxe5+ {[%emt 0:00:11]} Kd5 {[%emt 0:00:33]} 39. Ne4 {[%emt 0:00:46]} Kxe5 {[%emt 0:00:13]} 40. Nd2 {[%emt 0:00:15]} Kd5 {[%emt 0:30:56]} 41. Nc4 {[%emt 0:01:02]} Re8 {[%emt 0:00:00]} 42. Ra2 {[%emt 0:10:02]} Bc8 {[%emt 0:00:00]} 43. Nxa5 {[%emt 0:03:54]} Bd7 {[%emt 0:00:00]} 44. Nc4 {[%emt 0:01:03]} Bf5 {[%emt 0:00:00]} 45. Ra7 {[%emt 0:04:54]} Re2 {[%emt 0:00:00]} 46. Ra8 {[%emt 0:00:31]} c5 {[%emt 0:00:00]} 47. Ra3 {[%emt 0:11:39]} Rb4 {[%emt 0:00:00]} 48. Kf1 {[%emt 0:00:07]} Re6 {[%emt 0:00:00]} 49. Nd2 {[%emt 0:01:03]} Re3 {[%emt 0:00:47]} 50. Ra5 {[%emt 0:00:51]} Bxd3+ {[%emt 0:00:13]} 51. Kg1 {[%emt 0:00:07]} Rb5 {[%emt 0:00:24]} 52. Ra8 {[%emt 0:00:38]} Re2 {[%emt 0:01:51]} 53. Rd8+ {[%emt 0:00:23]} Kc6 {[%emt 0:00:39]} 54. Nf3 {[%emt 0:00:26]} Kb7 {[%emt 0:00:39]} 55. Rd7+ {[%emt 0:01:05]} Kb6 {[%emt 0:00:50]} 56. Rd6+ {[%emt 0:00:36]} Ka5 {[%emt 0:00:13]} 57. Rd5 {[%emt 0:00:23]} Kb4 {[%emt 0:00:33]} 58. Ne5 {[%emt 0:00:07]} Rxg2+ {[%emt 0:01:28]} 59. Kxg2 {[%emt 0:00:36]} Be4+ {[%emt 0:00:07]} 60. Kf2 {[%emt 0:00:13]} Bxd5 {[%emt 0:00:08]} 61. Nd3+ {[%emt 0:00:08]} Ka3 {[%emt 0:02:06]} 62. Nxc5 {[%emt 0:01:02]} Rb2+ {[%emt 0:00:13]} 63. Kg3 {[%emt 0:00:37]} Rg2+ {[%emt 0:00:08]} 64. Kf4 {[%emt 0:00:27]} Rxh2 {[%emt 0:00:22]} 65. Ke5 {[%emt 0:00:06]} Rh5+ {[%emt 0:01:19]} 66. Kxd4 {[%emt 0:00:02]} Rf5 {[%emt 0:01:05]} 67. Rc3+ {[%emt 0:00:26]} Kb4 {[%emt 0:00:24]} 68. Nd3+ {[%emt 0:00:23]} Ka4 {[%emt 0:00:21]} 69. Nb2+ {[%emt 0:00:21]} Kb5 {[%emt 0:00:39]} 70. Rc5+ {[%emt 0:00:07]} Kb4 {[%emt 0:00:10]} 71. Nd3+ {[%emt 0:00:09]} Kb3 {[%emt 0:00:16]} 72. Rb5+ {[%emt 0:01:02]} Kc2 {[%emt 0:00:24]} 73. Rb2+ {[%emt 0:00:18]} Kd1 {[%emt 0:00:07]} 74. Kc3 {[%emt 0:00:05]} Bf7 1-0

[Event "SVK Extraliga 2017-18"]
[Site "Slovakia"]
[Date "2017.12.09"]
[Round "5"]
[White "Istona, Martin"]
[Black "Bombek, Peter"]
[Result "1/2-1/2"]
[ECO "C02"]
[WhiteElo "2277"]
[BlackElo "2252"]
[Annotator "NA"]
[PlyCount "124"]
[EventDate "2017.??.??"]
[EventType "team-tourn"]
[EventCountry "SVK"]
[SourceTitle "playchess.com"]
[Source "ChessBase"]
[SourceQuality "1"]
[TimeControl "40/5400+30:1800+30"]

1. e4 {[%emt 0:00:00]} e6 {[%emt 0:00:03]} 2. d4 {[%emt 0:00:00]} d5 {[%emt 0:00:04]} 3. e5 {[%emt 0:00:00]} c5 {[%emt 0:00:15]} 4. c3 {[%emt 0:00:02]} Bd7 {[%emt 0:00:10]} 5. Nf3 {[%emt 0:01:01]} Nc6 {[%emt 0:00:14]} 6. Be2 {[%emt 0:00:06]} Nge7 {[%emt 0:00:29]} 7. Na3 {[%emt 0:01:32]} cxd4 {[%emt 0:02:02]} 8. cxd4 {[%emt 0:00:06]} Nf5 {[%emt 0:01:09]} 9. Nc2 {[%emt 0:00:22]} Qb6 {[%emt 0:01:04]} 10. O-O {[%emt 0:03:11]} Rc8 {[%emt 0:00:52]} 11. Rb1 {[%emt 0:13:59]} a5 {[%emt 0:03:54]} 12. b3 {[%emt 0:11:03]} Be7 {[%emt 0:06:46]} 13. a3 {[%emt 0:06:58]} Na7 {[%emt 0:02:09]} 14. b4 {[%emt 0:26:55]} Ba4 {[%emt 0:06:29]} 15. Bd3 {[%emt 0:00:49]} axb4 {[%emt 0:02:06]} 16. axb4 {[%emt 0:01:59]} Nb5 {[%emt 0:03:40]} 17. Bb2 {[%emt 0:08:57]} O-O {[%emt 0:18:07]} 18. Qd2 {[%emt 0:01:57]} Bxc2 {[%emt 0:07:00]} 19. Bxc2 {[%emt 0:00:15]} Rc4 {[%emt 0:01:20]} 20. Bd3 {[%emt 0:10:02]} Rxb4 {[%emt 0:02:38]} 21. Bc3 {[%emt 0:00:43]} (21. h4 $15) 21... Nxc3 {[%emt 0:01:30]} 22. Qxc3 {[%emt 0:00:02]} Nxd4 {[%emt 0:04:50]} 23. Nxd4 {[%emt 0:00:31]} Qxd4 {[%emt 0:00:18]} 24. Qxd4 {[%emt 0:00:18]} Rxd4 {[%emt 0:00:05]} 25. Rxb7 {[%emt 0:00:16]} Rxd3 {[%emt 0:05:13]} 26. Rxe7 {[%emt 0:00:05]} Rc8 {[%emt 0:02:34]} 27. g3 {[%emt 0:09:47]} Rdc3 {[%emt 0:01:53]} 28. Rb1 {[%emt 0:02:07]} Rc1+ {[%emt 0:00:44]} 29. Rxc1 {[%emt 0:00:01]} Rxc1+ {[%emt 0:00:06]} 30. Kg2 {[%emt 0:00:03]} g5 {[%emt 0:01:15]} 31. f4 {[%emt 0:01:41]} Rc2+ {[%emt 0:02:37]} 32. Kh3 {[%emt 0:00:20]} gxf4 {[%emt 0:01:09]} 33. gxf4 {[%emt 0:00:14]} Kg7 {[%emt 0:00:52]} 34. Kg3 {[%emt 0:00:56]} Kg6 {[%emt 0:00:38]} 35. Rd7 {[%emt 0:00:17]} Rc3+ {[%emt 0:03:27]} 36. Kg2 {[%emt 0:00:33]} h5 {[%emt 0:01:03]} 37. Kf2 {[%emt 0:00:49]} Rd3 {[%emt 0:03:20]} 38. Re7 {[%emt 0:00:27]} h4 {[%emt 0:01:40]} 39. Kg2 {[%emt 0:00:34]} d4 {[%emt 0:06:22]} 40. Rd7 {[%emt 0:00:30]} Rd2+ {[%emt 0:34:02]} 41. Kh3 {[%emt 0:05:15]} d3 {[%emt 0:00:00]} 42. Kxh4 {[%emt 0:04:00]} Rxh2+ {[%emt 0:00:00]} 43. Kg3 {[%emt 0:00:22]} Rd2 {[%emt 0:00:00]} 44. Kf3 {[%emt 0:00:07]} Rd1 {[%emt 0:00:00]} 45. Ke3 {[%emt 0:03:33]} Re1+ {[%emt 0:00:00]} 46. Kf3 {[%emt 0:00:16]} Ra1 {[%emt 0:00:00]} 47. Rxd3 {[%emt 0:02:01]} Kf5 {[%emt 0:00:00]} 48. Rd7 {[%emt 0:01:02]} Ra3+ {[%emt 0:00:00]} 49. Ke2 {[%emt 0:00:33]} Kxf4 {[%emt 0:00:00]} 50. Rxf7+ {[%emt 0:00:16]} Kxe5 {[%emt 0:00:00]} 51. Rb7 $11 {[%emt 0:00:15]} Kf5 {[%emt 0:00:00]} 52. Rb5+ {[%emt 0:01:11]} e5 {[%emt 0:00:00]} 53. Rb4 {[%emt 0:00:04]} Ke6 {[%emt 0:00:00]} 54. Rh4 {[%emt 0:01:08]} Kd5 {[%emt 0:00:00]} 55. Rg4 {[%emt 0:00:53]} Ra2+ {[%emt 0:00:00]} 56. Ke3 {[%emt 0:00:27]} Rh2 {[%emt 0:00:00]} 57. Ra4 {[%emt 0:00:53]} Rh3+ {[%emt 0:00:00]} 58. Ke2 {[%emt 0:00:13]} Ke6 {[%emt 0:00:00]} 59. Rb4 {[%emt 0:00:37]} Kf5 {[%emt 0:00:00]} 60. Ra4 {[%emt 0:00:17]} Rb3 {[%emt 0:00:22]} 61. Rc4 {[%emt 0:01:01]} e4 {[%emt 0:00:33]} 62. Rc8 {[%emt 0:00:37]} Kf4 {[%emt 0:00:24]} 1/2-1/2

[Event "SVK Extraliga 2017-18"]
[Site "Slovakia"]
[Date "2017.12.09"]
[Round "5"]
[White "Franzen, Jozef"]
[Black "Zatko, Gregor"]
[Result "1-0"]
[ECO "A04"]
[WhiteElo "2261"]
[BlackElo "2167"]
[Annotator "NA"]
[PlyCount "61"]
[EventDate "2017.??.??"]
[EventType "team-tourn"]
[EventCountry "SVK"]
[SourceTitle "playchess.com"]
[Source "ChessBase"]
[SourceQuality "1"]
[TimeControl "40/5400+30:1800+30"]

1. Nf3 {[%emt 0:00:00]} d6 {[%emt 0:00:56]} 2. d4 {[%emt 0:00:13]} Nd7 {[%emt 0:00:27]} 3. e4 {[%emt 0:00:16]} g6 {[%emt 0:00:06]} 4. c4 {[%emt 0:00:29]} Bg7 {[%emt 0:00:12]} 5. Nc3 {[%emt 0:00:08]} e5 {[%emt 0:00:19]} 6. g3 {[%emt 0:00:53]} Ne7 {[%emt 0:00:32]} 7. Bg2 {[%emt 0:00:10]} O-O {[%emt 0:01:23]} 8. O-O {[%emt 0:00:07]} exd4 {[%emt 0:05:33]} 9. Nxd4 {[%emt 0:00:09]} Ne5 {[%emt 0:05:16]} 10. b3 {[%emt 0:01:35]} N7c6 {[%emt 0:00:19]} 11. Nxc6 {[%emt 0:07:58] A42: Moderne Verteidigung (mit c2-c4/ohne Sf6)} bxc6 {[%emt 0:05:17]} (11... Nxc6 12. Bb2 Be6 13. Qd2 Nd4 14. Rae1 Bh3 15. Nd5 Bxg2 16. Kxg2 Ne6 17. f4 Nc5 18. Bxg7 Kxg7 19. Qc3+ f6 20. e5 {1-0 (20) Solak,D (2568)-Vajda,L (2564) Predeal 2007}) 12. Bb2 {[%emt 0:03:47] LiveBook: 5 Games} Rb8 {[%emt 0:01:49]} 13. Qe2 {[%emt 0:03:48]} Re8 $146 {[%emt 0:11:13]} ({Vorgänger:} 13... f5 14. f4 Ng4 15. Rad1 fxe4 16. Bxe4 c5 17. h3 Nf6 18. Bg2 Re8 {1-0 (35) Horvath,A (2330)-Beszterczey,L (2077) Budapest 2005}) 14. f4 {[%emt 0:09:00]} Nd7 {[%emt 0:04:13]} 15. Rae1 {[%emt 0:06:23]} Nc5 {[%emt 0:02:29]} 16. Qd2 {[%emt 0:00:38]} Bd7 {[%emt 0:01:26]} 17. Re3 {[%emt 0:08:16]} Re7 {[%emt 0:04:27]} 18. Nd1 {[%emt 0:04:59]} Qf8 {[%emt 0:06:01]} 19. b4 {[%emt 0:08:19]} Na4 {[%emt 0:04:15]} 20. Bxg7 {[%emt 0:02:17]} Qxg7 {[%emt 0:01:04]} 21. Ra3 {[%emt 0:01:40]} c5 {[%emt 0:13:31]} 22. b5 {[%emt 0:00:09]} Nb6 {[%emt 0:00:06]} 23. Ne3 {[%emt 0:00:19]} f5 {[%emt 0:05:21]} 24. exf5 {[%emt 0:03:37]} Bxf5 {[%emt 0:03:38]} 25. Nxf5 {[%emt 0:02:01]} gxf5 {[%emt 0:00:26]} 26. Bd5+ {[%emt 0:05:02]} Kh8 {[%emt 0:00:34]} 27. Rxa7 {[%emt 0:00:16]} Rbe8 {[%emt 0:01:06]} 28. Rf2 {[%emt 0:00:41]} c6 {[%emt 0:06:49]} 29. Rxe7 {[%emt 0:00:42]} Rxe7 {[%emt 0:01:03]} 30. bxc6 {[%emt 0:00:16]} Na4 {[%emt 0:01:47]} 31. Qa5 {[%emt 0:03:17]} 1-0

[Event "SVK Extraliga 2017-18"]
[Site "Slovakia"]
[Date "2017.12.09"]
[Round "5"]
[White "Takacs, Laszlo"]
[Black "Koloditsova, Renata"]
[Result "1-0"]
[ECO "B11"]
[WhiteElo "2257"]
[BlackElo "2002"]
[Annotator "NA"]
[PlyCount "78"]
[EventDate "2017.??.??"]
[EventType "team-tourn"]
[EventCountry "SVK"]
[SourceTitle "playchess.com"]
[Source "ChessBase"]
[SourceQuality "1"]
[TimeControl "40/5400+30:1800+30"]

1. e4 {[%emt 0:00:00]} c6 {[%emt 0:00:25]} 2. Nc3 {[%emt 0:00:43]} d5 {[%emt 0:00:35]} 3. Nf3 {[%emt 0:00:05]} Bg4 {[%emt 0:10:12]} 4. h3 {[%emt 0:00:16]} Bxf3 {[%emt 0:00:06]} 5. Qxf3 {[%emt 0:00:05]} e6 {[%emt 0:00:36]} 6. Be2 {[%emt 0:00:19]} Nf6 {[%emt 0:22:16] B11: Caro-Kann: Two Knights Variation} (6... g6 7. d4 Bg7 8. Be3 Ne7 9. h4 h5 10. O-O-O Nd7 11. Bg5 Qb6 12. exd5 cxd5 13. Rhe1 Bh6 14. Bxh6 Rxh6 {½-½ (23) Ragger,M (2644)-Jobava,B (2712) Austria 2017}) 7. O-O {[%emt 0:02:12] LiveBook: 107 Games} Bd6 {[%emt 0:07:12]} 8. d4 {[%emt 0:06:50]} dxe4 {[%emt 0:00:17]} 9. Nxe4 {[%emt 0:00:05]} Nxe4 {[%emt 0:00:18]} 10. Qxe4 {[%emt 0:00:05]} Nd7 {[%emt 0:01:14]} 11. Bf3 {[%emt 0:04:17]} O-O {[%emt 0:01:12]} 12. Re1 $146 {[%emt 0:00:35]} ({Predecessor:} 12. Rd1 Re8 13. c4 a5 14. Be3 a4 15. a3 Qa5 {½-½ (68) Diakonova,E (1987)-Pogosian,M (2399) Tula 2014}) 12... Qa5 {[%emt 0:01:40]} 13. c3 {[%emt 0:04:58]} Rfe8 {[%emt 0:02:34]} 14. g3 {[%emt 0:03:32]} e5 {[%emt 0:05:47]} 15. Bg2 {[%emt 0:09:55]} exd4 {[%emt 0:21:30]} 16. Qxe8+ {[%emt 0:00:14]} Rxe8 {[%emt 0:00:06]} 17. Rxe8+ {[%emt 0:00:04]} Nf8 {[%emt 0:00:08]} 18. cxd4 {[%emt 0:02:21]} h6 {[%emt 0:02:57]} 19. Re2 {[%emt 0:05:28]} Ne6 {[%emt 0:00:34]} 20. Be3 {[%emt 0:00:35]} Nc7 {[%emt 0:00:44]} 21. a3 {[%emt 0:00:08]} Qb5 $14 {[%emt 0:00:48]} 22. Rae1 {[%emt 0:00:55]} Qd3 {[%emt 0:01:05]} 23. Bf4 {[%emt 0:00:58]} Qg6 {[%emt 0:00:34]} 24. Be4 {[%emt 0:05:58]} Qf6 {[%emt 0:00:03]} 25. Be5 {[%emt 0:01:12]} Bxe5 {[%emt 0:02:35]} 26. dxe5 {[%emt 0:00:04]} Qe6 {[%emt 0:00:52]} 27. Rd1 {[%emt 0:00:47]} g6 {[%emt 0:00:13]} 28. Kg2 {[%emt 0:02:33]} Qb3 {[%emt 0:05:27]} 29. Rd6 {[%emt 0:04:12]} Ne6 {[%emt 0:00:59]} 30. Re3 {[%emt 0:00:25]} Qa2 {[%emt 0:01:51]} 31. b4 {[%emt 0:05:55]} Kg7 {[%emt 0:02:27]} 32. Rd7 {[%emt 0:00:16]} Ng5 {[%emt 0:05:00]} 33. Bf3 {[%emt 0:08:00]} b6 {[%emt 0:01:54]} 34. h4 {[%emt 0:01:28]} Qe6 {[%emt 0:01:08]} 35. Rxa7 {[%emt 0:01:02]} Qh3+ {[%emt 0:01:16]} 36. Kg1 {[%emt 0:00:05]} Ne6 {[%emt 0:00:42]} 37. Bxc6 {[%emt 0:00:51]} g5 {[%emt 0:00:08]} 38. Bg2 {[%emt 0:03:52]} Qg4 {[%emt 0:00:19]} 39. Bf3 Kf8 1-0

[Event "SVK Extraliga 2017-18"]
[Site "Slovakia"]
[Date "2017.12.09"]
[Round "5"]
[White "Kamody, Mario"]
[Black "Kostolansky, Sebastian Lukas"]
[Result "1/2-1/2"]
[ECO "A20"]
[WhiteElo "2254"]
[BlackElo "2226"]
[Annotator "NA"]
[PlyCount "105"]
[EventDate "2017.??.??"]
[EventType "team-tourn"]
[EventCountry "SVK"]
[SourceTitle "playchess.com"]
[Source "ChessBase"]
[SourceQuality "1"]
[TimeControl "40/5400+30:1800+30"]

1. c4 {[%emt 0:00:07]} e5 {[%emt 0:00:08]} 2. g3 {[%emt 0:00:30]} Nf6 {[%emt 0:00:08]} 3. Bg2 {[%emt 0:00:12]} d5 {[%emt 0:00:08]} 4. cxd5 {[%emt 0:00:22]} Nxd5 {[%emt 0:00:07]} 5. Nf3 {[%emt 0:00:17]} Nc6 {[%emt 0:00:09]} 6. O-O {[%emt 0:00:15]} Be7 {[%emt 0:00:24]} 7. b3 {[%emt 0:01:49]} O-O {[%emt 0:02:39]} 8. Bb2 {[%emt 0:00:07]} f6 {[%emt 0:10:57]} 9. d4 {[%emt 0:03:10]} exd4 {[%emt 0:05:10]} 10. Nxd4 {[%emt 0:00:15]} Nxd4 {[%emt 0:00:53]} 11. Qxd4 {[%emt 0:00:53]} Be6 {[%emt 0:01:01]} 12. Rd1 {[%emt 0:02:41]} Nb4 {[%emt 0:16:06]} 13. Nc3 {[%emt 0:15:43]} Qxd4 {[%emt 0:03:46]} 14. Rxd4 $11 {[%emt 0:01:48]} c6 {[%emt 0:05:45]} 15. Rad1 {[%emt 0:04:14]} Rfd8 {[%emt 0:02:11]} 16. Be4 {[%emt 0:02:50]} Rxd4 {[%emt 0:09:51]} 17. Rxd4 {[%emt 0:00:12]} Rd8 {[%emt 0:10:04]} 18. Rxd8+ {[%emt 0:00:42]} Bxd8 {[%emt 0:00:07]} 19. Bb1 {[%emt 0:04:57]} a5 {[%emt 0:03:21]} 20. Kg2 {[%emt 0:04:34]} Kf7 {[%emt 0:03:48]} 21. f4 {[%emt 0:03:03]} f5 {[%emt 0:04:31]} 22. e4 {[%emt 0:10:50]} g6 {[%emt 0:00:40]} 23. Kf2 {[%emt 0:04:23]} Bb6+ {[%emt 0:02:23]} 24. Ke2 {[%emt 0:00:53]} Bd4 {[%emt 0:01:57]} 25. Na4 {[%emt 0:02:24]} Bxb2 {[%emt 0:02:35]} 26. Nxb2 {[%emt 0:00:07]} fxe4 {[%emt 0:00:09]} 27. Na4 {[%emt 0:01:27]} Bg4+ {[%emt 0:00:52]} 28. Kd2 {[%emt 0:02:31]} Bf5 {[%emt 0:00:34]} 29. Ke1 {[%emt 0:07:43]} Nd5 {[%emt 0:03:21]} 30. a3 {[%emt 0:01:36]} b5 {[%emt 0:03:45]} 31. Nc5 {[%emt 0:00:36]} Nc3 {[%emt 0:00:06]} 32. Bc2 {[%emt 0:00:17]} e3 {[%emt 0:00:39]} 33. Bxf5 {[%emt 0:00:28]} gxf5 {[%emt 0:00:11]} 34. a4 {[%emt 0:02:02]} Ke7 {[%emt 0:02:26]} 35. Nb7 {[%emt 0:00:45]} bxa4 {[%emt 0:03:18]} 36. bxa4 {[%emt 0:00:19]} Ke6 {[%emt 0:01:07]} 37. Nxa5 {[%emt 0:00:32]} Kd5 {[%emt 0:00:06]} 38. g4 {[%emt 0:05:10]} fxg4 {[%emt 0:00:26]} 39. f5 {[%emt 0:00:11]} h5 {[%emt 0:02:10]} 40. f6 {[%emt 0:00:24]} Ke6 {[%emt 0:30:15]} 41. Nxc6 {[%emt 0:31:24]} Nxa4 {[%emt 0:01:01]} 42. Ke2 {[%emt 0:02:23]} Kxf6 {[%emt 0:00:08]} 43. Kxe3 {[%emt 0:00:11]} Kg5 {[%emt 0:00:10]} 44. Ne5 {[%emt 0:03:26]} Nc5 {[%emt 0:00:34]} 45. Kf2 {[%emt 0:01:17]} Kf5 {[%emt 0:01:09]} 46. Nc6 {[%emt 0:02:31]} Kf4 {[%emt 0:00:50]} 47. Kg2 {[%emt 0:04:12]} Ne4 {[%emt 0:01:10]} 48. h3 {[%emt 0:02:22]} g3 {[%emt 0:00:10]} 49. Nd4 {[%emt 0:00:34]} h4 {[%emt 0:00:29]} 50. Nf3 {[%emt 0:00:13]} Ng5 {[%emt 0:00:57]} 51. Nxh4 {[%emt 0:01:36]} Nxh3 {[%emt 0:00:26]} 52. Kxh3 {[%emt 0:00:13]} g2 {[%emt 0:00:08]} 53. Nxg2+ {[%emt 0:00:02]} 1/2-1/2